bitfinex-derivatives/quotes_BTCF0:USTF0_20260315
["timestamp","ask_amount","ask_price","bid_price","bid_amount"]
[1773587874345,0.05748886,71519.0,71515.0,0.0014]
[1773587874547,0.05748886,71519.0,71516.0,0.0014]
[1773587874749,0.05748886,71519.0,71517.0,0.0014]
[1773587875046,0.05748886,71519.0,71518.0,0.0014]
[1773587876349,0.05748886,71519.0,71509.0,0.00368]
[1773587876647,0.05748886,71519.0,71510.0,0.0014]
[1773587876947,0.09942986,71519.0,71510.0,0.0014]
[1773587877145,0.09942986,71519.0,71511.0,0.0014]
[1773587877541,0.09942986,71519.0,71509.0,0.00368]
[1773587877745,0.00368,71533.0,71510.0,0.0014]
[1773587877746,0.05748886,71516.0,71510.0,0.0014]
[1773587877947,0.041941,71517.0,71509.0,0.0014]
[1773587878252,0.041941,71517.0,71510.0,0.0014]
[1773587878451,0.041941,71517.0,71509.0,0.0014]
[1773587878638,0.041941,71517.0,71510.0,0.0014]
[1773587879453,0.09942786,71521.0,71510.0,0.0014]
[1773587880654,0.00368,71533.0,71517.0,0.041941]
[1773587881243,0.06116886,71533.0,71517.0,0.041941]
[1773587881443,0.06116886,71533.0,71512.0,0.05804092]
[1773587881758,0.041934,71530.0,71513.0,0.0014]
[1773587882053,0.041934,71529.0,71516.0,0.041941]
[1773587882445,0.041933,71532.0,71514.0,0.05804092]
[1773587882848,0.00368,71533.0,71522.0,0.041938]
[1773587883051,0.00368,71533.0,71523.0,0.0014]
[1773587883052,0.00353183,71533.0,71523.0,0.0014]
[1773587883448,0.00453183,71533.0,71523.0,0.0014]
[1773587884553,0.00353183,71533.0,71523.0,0.043337]
[1773587884753,0.00453183,71533.0,71523.0,0.043337]
[1773587886155,0.001,71533.0,71523.0,0.043337]
[1773587886359,0.04193,71537.0,71523.0,0.0014]
[1773587888057,0.04193,71537.0,71525.0,0.041936]
[1773587888757,0.04193,71537.0,71527.0,0.08793802]
[1773587889161,0.06116886,71543.0,71527.0,0.08793802]
[1773587889352,0.041928,71541.0,71527.0,0.08793802]
[1773587889649,0.041927,71542.0,71529.0,0.041934]
[1773587889850,0.041927,71542.0,71530.0,0.043333]
[1773587890152,0.041926,71544.0,71530.0,0.0014]
[1773587890460,0.041926,71543.0,71530.0,0.0014]
[1773587890659,0.041927,71542.0,71530.0,0.0014]
[1773587892353,0.041927,71541.0,71530.0,0.0014]
[1773587896261,0.041927,71542.0,71530.0,0.043333]
[1773587896954,0.041927,71542.0,71530.0,0.0014]
[1773587897258,0.041926,71543.0,71530.0,0.0014]
[1773587897450,0.041927,71542.0,71530.0,0.043333]
[1773587898357,0.041928,71541.0,71530.0,0.043333]
[1773587909187,0.041928,71541.0,71530.0,0.0014]
[1773587909789,0.06215909,71537.0,71523.0,0.13732995]
[1773587909978,0.06215909,71537.0,71506.0,0.10037369]
[1773587909979,0.06215909,71530.0,71524.0,0.0014]
[1773587910285,0.06215909,71529.0,71525.0,0.0014]
[1773587910481,0.06215909,71529.0,71526.0,0.0014]
[1773587910671,0.06215909,71529.0,71517.0,0.041941]
[1773587910871,0.06215909,71529.0,71504.0,0.47625208]
[1773587910872,0.06215909,71529.0,71521.0,0.0014]
[1773587911077,0.041928,71540.0,71526.0,0.041936]
[1773587911391,0.06215909,71541.0,71530.0,0.08793802]
[1773587911685,0.06215909,71541.0,71531.0,0.0014]
[1773587912091,0.041929,71539.0,71531.0,0.0014]
[1773587912490,0.041929,71538.0,71531.0,0.0014]
[1773587917585,0.04193,71537.0,71531.0,0.0014]
[1773587917781,0.05787818,71535.0,71531.0,0.0014]
[1773587920097,0.041929,71538.0,71531.0,0.0014]
[1773587920298,0.05787818,71539.0,71531.0,0.0014]
[1773587920596,0.05787818,71548.0,71533.0,0.0014]
[1773587920896,0.041927,71542.0,71533.0,0.0014]
[1773587925601,0.041927,71542.0,71531.0,0.0014]
[1773587928495,0.041923,71548.0,71536.0,0.04193]
[1773587928812,0.041923,71548.0,71539.0,0.08793802]
[1773587929097,0.041923,71548.0,71540.0,0.0014]
[1773587929694,0.042923,71548.0,71540.0,0.0014]
[1773587930410,0.041923,71548.0,71540.0,0.0014]
[1773587934906,0.05542145,71553.0,71542.0,0.0014]
[1773587935112,0.041921,71553.0,71542.0,0.0014]
[1773587935315,0.05622971,71562.0,71543.0,0.08793802]
[1773587935511,0.05622971,71562.0,71550.0,0.08793802]
[1773587935705,0.041916,71560.0,71551.0,0.0014]
[1773587936204,0.09814471,71562.0,71553.0,0.0014]
[1773587936606,0.05622971,71562.0,71553.0,0.0014]
[1773587938216,0.05622971,71572.0,71553.0,0.04332]
[1773587938711,0.09814371,71565.0,71553.0,0.0014]
[1773587940212,0.041914,71564.0,71553.0,0.0014]
[1773587940408,0.041914,71564.0,71552.0,0.04192]
[1773587941914,0.09814371,71564.0,71552.0,0.04192]
[1773587942113,0.05622971,71563.0,71552.0,0.04192]
[1773587942314,0.05622971,71563.0,71555.0,0.0014]
[1773587945626,0.05622971,71563.0,71552.0,0.04192]
[1773587946735,0.05622971,71563.0,71553.0,0.04192]
[1773587947031,0.05622971,71563.0,71555.0,0.0014]
[1773587948729,0.09814471,71563.0,71555.0,0.0014]
[1773587951931,0.041915,71563.0,71555.0,0.0014]
[1773587952131,0.05622971,71575.0,71556.0,0.041918]
[1773587952432,0.05622971,71575.0,71560.0,0.08788007]
[1773587952731,0.05622971,71575.0,71561.0,0.0014]
[1773587953032,0.041912,71568.0,71561.0,0.0028]
[1773587953230,0.041912,71567.0,71561.0,0.0028]
[1773587955435,0.041913,71566.0,71561.0,0.0028]
[1773587955735,0.09814271,71566.0,71561.0,0.0028]
[1773587956336,0.041913,71566.0,71561.0,0.0028]
[1773587960234,0.041912,71568.0,71561.0,0.0028]
[1773587960430,0.041912,71567.0,71561.0,0.0014]
[1773587968143,0.05622971,71570.0,71561.0,0.0014]
[1773587968334,0.00367,71577.0,71563.0,0.0014]
[1773587968535,0.041912,71568.0,71563.0,0.0014]
[1773587969543,0.041912,71567.0,71563.0,0.0014]
[1773587972243,0.041911,71569.0,71563.0,0.0014]
[1773587972844,0.041912,71568.0,71563.0,0.0014]
[1773587979637,0.041912,71567.0,71563.0,0.0014]
[1773587980347,0.041912,71567.0,71561.0,0.0014]
[1773587980545,0.041912,71567.0,71563.0,0.0014]
[1773587983345,0.041911,71569.0,71563.0,0.0014]
[1773587983841,0.041912,71568.0,71563.0,0.0014]
[1773587984036,0.05776633,71571.0,71563.0,0.0014]
[1773587984842,0.04191,71570.0,71563.0,0.0014]
[1773587985344,0.09967633,71570.0,71561.0,0.0014]
[1773587985548,0.041912,71568.0,71561.0,0.0014]
[1773587988953,0.041912,71567.0,71561.0,0.0014]
[1773587989157,0.09967833,71567.0,71562.0,0.0014]
[1773587989344,0.09967833,71567.0,71556.0,0.041918]
[1773587989546,0.09967833,71567.0,71557.0,0.0014]
[1773587990246,0.05776633,71576.0,71557.0,0.08928007]
[1773587990453,0.05776633,71576.0,71560.0,0.041915]
[1773587990454,0.041909,71572.0,71560.0,0.041915]
[1773587997155,0.041911,71570.0,71558.0,0.041917]
[1773587998061,0.041911,71570.0,71559.0,0.041916]
[1773588000270,0.041908,71575.0,71551.0,0.25625418]
[1773588000563,0.041922,71550.0,71542.0,0.26146418]
[1773588000753,0.041922,71550.0,71543.0,0.0014]
[1773588001154,0.0414108,71553.0,71542.0,0.00521]
[1773588001351,0.05649421,71561.0,71542.0,0.00521]
[1773588001557,0.05649421,71561.0,71543.0,0.0014]
[1773588001761,0.041922,71550.0,71543.0,0.0014]
[1773588001963,0.041922,71550.0,71544.0,0.0014]
[1773588002152,0.041922,71550.0,71545.0,0.0014]
[1773588002363,0.041922,71550.0,71538.0,0.25625418]
[1773588002556,0.05649421,71553.0,71538.0,0.25625418]
[1773588002557,0.041921,71552.0,71539.0,0.043328]
[1773588002757,0.041921,71552.0,71540.0,0.08788007]
[1773588002957,0.041921,71552.0,71541.0,0.0014]
[1773588003157,0.041921,71552.0,71542.0,0.00367]
[1773588004067,0.04122175,71552.0,71542.0,0.00367]
[1773588007767,0.04122175,71552.0,71542.0,0.25992418]
[1773588008272,0.04122175,71552.0,71542.0,0.00367]
[1773588010567,0.04122175,71552.0,71543.0,0.0014]
[1773588011274,0.05649421,71559.0,71532.0,0.041932]
[1773588011574,0.05649421,71548.0,71533.0,0.0014]
[1773588011761,0.08788007,71553.0,71527.0,0.041935]
[1773588011762,0.041928,71541.0,71534.0,0.0014]
[1773588011960,0.041928,71541.0,71528.0,0.041935]
[1773588011961,0.041928,71541.0,71535.0,0.0014]
[1773588012166,0.041928,71541.0,71528.0,0.041935]
[1773588012375,0.05649421,71544.0,71527.0,0.25765418]
[1773588012565,0.08788007,71550.0,71528.0,0.0014]
[1773588012566,0.05649421,71549.0,71528.0,0.0014]
[1773588013162,0.05649421,71549.0,71535.0,0.00154]
[1773588013372,0.05649421,71549.0,71535.0,0.00294]
[1773588014077,0.041928,71540.0,71535.0,0.0014]
[1773588014267,0.041931,71534.0,71529.0,0.0014]
[1773588014462,0.041931,71534.0,71526.0,0.00014585]
[1773588014463,0.041931,71534.0,71528.0,0.25625418]
[1773588014770,0.041931,71534.0,71530.0,0.0014]
[1773588015071,0.041931,71534.0,71528.0,0.25625418]
[1773588015276,0.041931,71534.0,71529.0,0.0014]
[1773588015472,0.041931,71534.0,71530.0,0.0014]
[1773588015665,0.041931,71534.0,71531.0,0.0014]
[1773588015870,0.041931,71534.0,71526.0,0.00014585]
[1773588016069,0.041931,71534.0,71527.0,0.0014]
[1773588016471,0.045612,71533.0,71527.0,0.0014]
[1773588017074,0.045612,71533.0,71528.0,0.0014]
[1773588018382,0.045612,71533.0,71529.0,0.0014]
[1773588019378,0.041932,71533.0,71529.0,0.0014]
[1773588022176,0.041933,71532.0,71529.0,0.0014]
[1773588023282,0.00368,71535.0,71529.0,0.0014]
[1773588023283,0.041932,71534.0,71529.0,0.0014]
[1773588024676,0.10780975,71534.0,71529.0,0.0014]
[1773588025077,0.041932,71533.0,71529.0,0.0014]
[1773588032302,0.041933,71532.0,71529.0,0.0014]
[1773588032696,0.027,71532.0,71529.0,0.0014]
[1773588035188,0.041931,71534.0,71529.0,0.0014]
[1773588035392,0.0014,71551.0,71531.0,0.10409939]
[1773588035596,0.22654187,71550.0,71531.0,0.10409939]
[1773588035797,0.041926,71543.0,71531.0,0.10409939]
[1773588036197,0.06587775,71549.0,71530.0,0.08794919]
[1773588036394,0.041927,71541.0,71530.0,0.08794919]
[1773588037403,0.041927,71541.0,71534.0,0.00368]
[1773588037594,0.041926,71543.0,71535.0,0.0014]
[1773588037789,0.06587775,71549.0,71535.0,0.0014]
[1773588038295,0.00368,71537.0,71535.0,0.0014]
[1773588038490,0.06587775,71549.0,71535.0,0.0014]
[1773588039099,0.041926,71544.0,71535.0,0.0014]
[1773588040903,0.06587775,71551.0,71535.0,0.0014]
[1773588042412,0.041925,71545.0,71535.0,0.0014]
[1773588043309,0.041926,71544.0,71535.0,0.0014]
[1773588048318,0.041926,71543.0,71535.0,0.0014]
[1773588049912,0.041927,71542.0,71535.0,0.0014]
[1773588055728,0.041927,71541.0,71535.0,0.0014]
[1773588076436,0.041926,71543.0,71535.0,0.0014]
[1773588076640,0.041927,71542.0,71535.0,0.0014]
[1773588097859,0.041927,71542.0,71533.0,0.00368]
[1773588097860,0.05748797,71531.0,71508.0,0.05958707]
[1773588098152,0.05748797,71539.0,71509.0,0.0014]
[1773588098356,0.041936,71526.0,71513.0,0.041943]
[1773588098745,0.041936,71526.0,71514.0,0.043343]
[1773588099454,0.041936,71526.0,71515.0,0.0014]
[1773588099857,0.041936,71526.0,71514.0,0.041943]
[1773588100053,0.041936,71526.0,71519.0,0.00368]
[1773588100555,0.041936,71526.0,71520.0,0.0014]
[1773588100853,0.00368,71522.0,71519.0,0.00368]
[1773588101054,0.00368,71522.0,71520.0,0.0014]
[1773588101455,0.00368,71522.0,71519.0,0.00368]
[1773588101655,0.00368,71522.0,71521.0,0.0014]
[1773588102156,0.00368,71522.0,71510.0,0.08793398]
[1773588102361,0.05748797,71528.0,71511.0,0.0014]
[1773588102655,0.05748797,71528.0,71512.0,0.0014]
[1773588103056,0.041938,71523.0,71513.0,0.0014]
[1773588104262,0.045618,71523.0,71513.0,0.0014]
[1773588104963,0.00368,71523.0,71513.0,0.0014]
[1773588114073,0.041932,71533.0,71519.0,0.06109376]
[1773588114279,0.041932,71533.0,71520.0,0.0014]
[1773588114773,0.00012497,71541.0,71523.0,0.08793398]
[1773588114974,0.041929,71538.0,71530.0,0.08793398]
[1773588115173,0.00012497,71541.0,71531.0,0.0014]
[1773588115978,0.041929,71538.0,71531.0,0.0014]
[1773588116169,0.05054931,71547.0,71531.0,0.0014]
[1773588116979,0.041929,71538.0,71531.0,0.0014]
[1773588117678,0.041929,71538.0,71533.0,0.00368]
[1773588118279,0.00368,71536.0,71533.0,0.00368]
[1773588118479,0.041929,71538.0,71533.0,0.00368]
[1773588118776,0.05620891,71544.0,71533.0,0.00368]
[1773588118979,0.041929,71538.0,71531.0,0.0014]
[1773588119280,0.05620891,71544.0,71531.0,0.0014]
[1773588120079,0.041929,71538.0,71531.0,0.0014]
[1773588121682,0.041929,71538.0,71531.0,0.00508]
[1773588122884,0.05620891,71544.0,71531.0,0.00508]
[1773588123779,0.05620891,71548.0,71531.0,0.00508]
[1773588123984,0.00367,71549.0,71538.0,0.08793398]
[1773588124185,0.00367,71549.0,71539.0,0.0014]
[1773588124387,0.041924,71547.0,71539.0,0.0014]
[1773588124586,0.05620891,71555.0,71539.0,0.0014]
[1773588124787,0.041922,71550.0,71539.0,0.0014]
[1773588125484,0.001,71549.0,71539.0,0.0014]
[1773588127091,0.042922,71550.0,71539.0,0.0014]
[1773588127492,0.041922,71550.0,71539.0,0.0014]
[1773588128394,0.042922,71550.0,71539.0,0.0014]
[1773588129790,0.041923,71549.0,71539.0,0.0014]
[1773588132484,0.041923,71548.0,71539.0,0.0014]
[1773588132680,0.05620891,71552.0,71530.0,0.08793398]
[1773588132886,0.05620891,71558.0,71533.0,0.0014]
[1773588133193,0.041926,71544.0,71533.0,0.0014]
[1773588133590,0.041926,71544.0,71534.0,0.0014]
[1773588145700,0.041926,71544.0,71532.0,0.045612]
[1773588145903,0.041926,71544.0,71533.0,0.0014]
[1773588153205,0.041926,71544.0,71532.0,0.045612]
[1773588153400,0.041926,71544.0,71534.0,0.0014]
[1773588154603,0.0995407,71544.0,71534.0,0.0014]
[1773588155303,0.0995407,71544.0,71535.0,0.0014]
[1773588155506,0.0995407,71544.0,71532.0,0.045612]
[1773588155707,0.0995407,71544.0,71533.0,0.0014]
[1773588157110,0.0995407,71544.0,71532.0,0.045612]
[1773588157710,0.041926,71543.0,71532.0,0.045612]
[1773588157906,0.041926,71543.0,71533.0,0.0014]
[1773588159010,0.041926,71543.0,71534.0,0.0014]
[1773588160208,0.041926,71543.0,71532.0,0.045612]
[1773588160405,0.041926,71543.0,71533.0,0.0014]
[1773588161908,0.0576147,71544.0,71533.0,0.0014]
[1773588163115,0.0995407,71544.0,71533.0,0.0014]
[1773588163412,0.0576147,71556.0,71534.0,0.08793289]
[1773588163614,0.0576147,71556.0,71540.0,0.12985989]
[1773588163914,0.04192,71554.0,71541.0,0.043327]
[1773588164412,0.0576147,71561.0,71544.0,0.08793289]
[1773588164611,0.0576147,71561.0,71551.0,0.08793289]
[1773588164816,0.0576147,71561.0,71552.0,0.0014]
[1773588165013,0.0014,71573.0,71552.0,0.0014]
[1773588165222,0.0576147,71569.0,71552.0,0.0014]
[1773588166014,0.041918,71558.0,71552.0,0.0014]
[1773588167923,0.0576147,71562.0,71552.0,0.0014]
[1773588169025,0.041918,71558.0,71552.0,0.0014]
[1773588170527,0.0576147,71562.0,71552.0,0.0014]
[1773588171024,0.041918,71558.0,71552.0,0.0014]
[1773588171525,0.0576147,71562.0,71552.0,0.0014]
[1773588172028,0.041918,71558.0,71552.0,0.0014]
[1773588173927,0.0576147,71562.0,71552.0,0.0014]
[1773588174231,0.05717171,71569.0,71552.0,0.0014]
[1773588174425,0.041912,71567.0,71559.0,0.08793289]
[1773588174615,0.041913,71565.0,71560.0,0.0014]
[1773588175016,0.06320312,71565.0,71560.0,0.0014]
[1773588179322,0.041913,71565.0,71560.0,0.0014]
[1773588181229,0.00591599,71569.0,71560.0,0.0014]
[1773588181432,0.041915,71562.0,71561.0,0.0014]
[1773588182424,0.041915,71562.0,71551.0,0.13727412]
[1773588182633,0.041915,71562.0,71552.0,0.0014]
[1773588185334,0.041916,71561.0,71552.0,0.0014]
[1773588188336,0.041915,71563.0,71552.0,0.0014]
[1773588199250,0.041915,71563.0,71551.0,0.17919512]
[1773588199452,0.041915,71563.0,71553.0,0.0014]
[1773588220881,0.041915,71563.0,71552.0,0.041921]
[1773588221073,0.041915,71563.0,71554.0,0.0014]
[1773588222884,0.00367,71578.0,71554.0,0.0014]
[1773588223179,0.041912,71568.0,71560.0,0.08788162]
[1773588223381,0.041912,71568.0,71561.0,0.0014]
[1773588225783,0.041912,71568.0,71562.0,0.0014]
[1773588225982,0.041912,71568.0,71563.0,0.0014]
[1773588229589,0.041912,71567.0,71563.0,0.0014]
[1773588229979,0.041912,71567.0,71564.0,0.0014]
[1773588230184,0.041912,71567.0,71558.0,0.08788162]
[1773588230387,0.041912,71567.0,71559.0,0.0014]
[1773588230991,0.041912,71567.0,71560.0,0.0014]
[1773588231191,0.041912,71567.0,71561.0,0.0014]
[1773588231584,0.041912,71567.0,71562.0,0.0014]
[1773588231788,0.041912,71567.0,71563.0,0.0014]
[1773588232089,0.041912,71567.0,71555.0,0.16766157]
[1773588232292,0.041912,71567.0,71556.0,0.0014]
[1773588234892,0.041912,71567.0,71557.0,0.08788162]
[1773588235286,0.041912,71567.0,71556.0,0.0014]
[1773588238795,0.041912,71567.0,71555.0,0.16766157]
[1773588238994,0.041912,71567.0,71556.0,0.0014]
[1773588241398,0.041912,71567.0,71557.0,0.08788162]
[1773588242398,0.041912,71567.0,71556.0,0.0014]
[1773588244299,0.041912,71567.0,71557.0,0.08788162]
[1773588245594,0.041912,71567.0,71556.0,0.0014]
[1773588247698,0.041912,71568.0,71556.0,0.043318]
[1773588249500,0.041912,71567.0,71556.0,0.043318]
[1773588249705,0.00367,71578.0,71560.0,0.041916]
[1773588250906,0.04191,71571.0,71561.0,0.0014]
[1773588251405,0.04191,71571.0,71561.0,0.06308268]
[1773588256909,0.04191,71571.0,71561.0,0.19006322]
[1773588257110,0.04191,71570.0,71561.0,0.19006322]
[1773588257309,0.00367,71578.0,71561.0,0.19006322]
[1773588258007,0.04191,71570.0,71561.0,0.19006322]
[1773588258209,0.00367,71578.0,71561.0,0.19006322]
[1773588258410,0.04191,71570.0,71561.0,0.19006322]
[1773588262319,0.00367,71578.0,71562.0,0.041914]
[1773588262619,0.00367,71578.0,71562.0,0.10293935]
[1773588262620,0.041909,71573.0,71562.0,0.10293935]
[1773588263823,0.041909,71572.0,71562.0,0.06102535]
[1773588268325,0.05,71600.0,71569.0,0.041911]
[1773588268511,0.0014,71597.0,71570.0,0.08785615]
[1773588268814,0.0014,71597.0,71571.0,0.0014]
[1773588269008,0.043297,71593.0,71571.0,0.0014]
[1773588269205,0.041903,71582.0,71571.0,0.0014]
[1773588269610,0.04260251,71581.0,71571.0,0.0014]
[1773588270717,0.03153664,71599.0,71572.0,0.06093702]
[1773588271022,0.03153664,71596.0,71571.0,0.0014]
[1773588271224,0.041903,71582.0,71571.0,0.0014]
[1773588271416,0.041903,71582.0,71571.0,0.043309]
[1773588272118,0.03118515,71589.0,71571.0,0.043309]
[1773588272119,0.041902,71584.0,71571.0,0.043309]
[1773588273018,0.041902,71584.0,71571.0,0.0014]
[1773588273215,0.041902,71584.0,71571.0,0.043309]
[1773588273415,0.041902,71584.0,71572.0,0.041909]
[1773588276321,0.041902,71584.0,71572.0,0.09910415]
[1773588287235,0.00367,71592.0,71570.0,0.21958315]
[1773588287236,0.01756102,71591.0,71570.0,0.21958315]
[1773588287422,0.01756102,71589.0,71571.0,0.0014]
[1773588287622,0.00367,71592.0,71571.0,0.05859515]
[1773588287931,0.041905,71579.0,71571.0,0.05859515]
[1773588291727,0.00367,71592.0,71571.0,0.05859515]
[1773588291927,0.00367,71592.0,71580.0,0.08785615]
[1773588292122,0.05,71600.0,71570.0,0.131727]
[1773588292123,0.041894,71598.0,71584.0,0.041902]
[1773588292433,0.041894,71598.0,71585.0,0.05843559]
[1773588295223,0.00367,71607.0,71590.0,0.05703559]
[1773588295422,0.00069802,71631.0,71610.0,0.08785615]
[1773588295628,0.041879,71624.0,71611.0,0.05703559]
[1773588296028,0.08785615,71621.0,71601.0,0.05703559]
[1773588296234,0.1357088,71621.0,71602.0,0.0014]
[1773588296936,0.041885,71614.0,71602.0,0.0014]
[1773588297334,0.1357088,71621.0,71602.0,0.0014]
[1773588297335,0.041883,71616.0,71602.0,0.05843559]
[1773588298440,0.041884,71615.0,71602.0,0.05843559]
[1773588299327,0.041885,71614.0,71602.0,0.05843559]
[1773588302044,0.041885,71613.0,71602.0,0.05843559]
[1773588304236,0.041885,71613.0,71602.0,0.1832987]
[1773588304437,0.041885,71613.0,71603.0,0.05703559]
[1773588306342,0.041884,71615.0,71603.0,0.05703559]
[1773588306540,0.0014,71623.0,71603.0,0.05703559]
[1773588306742,0.00367,71627.0,71602.0,0.12626311]
[1773588306743,0.00367,71627.0,71611.0,0.05703559]
[1773588306944,0.00367,71627.0,71613.0,0.05703559]
[1773588307342,0.00367,71627.0,71614.0,0.05843559]
[1773588307542,0.00367,71627.0,71615.0,0.0014]
[1773588307938,0.04188,71623.0,71615.0,0.0014]
[1773588308935,0.041878,71625.0,71615.0,0.0014]
[1773588311952,0.041879,71624.0,71615.0,0.0014]
[1773588313744,0.00069802,71631.0,71615.0,0.0014]
[1773588313945,0.041878,71626.0,71615.0,0.0014]
[1773588314146,0.041878,71626.0,71615.0,0.05843559]
[1773588317255,0.041879,71625.0,71615.0,0.05843559]
[1773588318452,0.00069802,71631.0,71616.0,0.041883]
[1773588318453,0.041877,71628.0,71616.0,0.041883]
[1773588319664,0.00069802,71631.0,71619.0,0.041881]
[1773588319665,0.04257302,71631.0,71619.0,0.041881]
[1773588319843,0.04257302,71631.0,71618.0,0.05703559]
[1773588320050,0.00069802,71631.0,71620.0,0.041881]
[1773588320967,0.00069802,71631.0,71618.0,0.09891759]
[1773588321266,0.00069802,71631.0,71618.0,0.05703559]
[1773588323061,0.041876,71629.0,71618.0,0.05703559]
[1773588331264,0.041876,71629.0,71618.0,0.041882]
[1773588331458,0.041876,71629.0,71619.0,0.05437189]
[1773588340270,0.04257302,71631.0,71619.0,0.08772288]
[1773588340470,0.04257302,71631.0,71620.0,0.05584915]
[1773588340771,0.041875,71630.0,71622.0,0.05584915]
[1773588341363,0.00069802,71631.0,71621.0,0.0014]
[1773588341668,0.041875,71630.0,71621.0,0.0014]
[1773588344173,0.041875,71630.0,71622.0,0.05581563]
[1773588344775,0.041875,71630.0,71621.0,0.0014]
[1773588351790,0.00069802,71631.0,71621.0,0.0014]
[1773588352990,0.041876,71629.0,71621.0,0.0014]
[1773588354090,0.041876,71628.0,71621.0,0.0014]
[1773588355193,0.041875,71630.0,71621.0,0.0014]
[1773588355991,0.041876,71629.0,71621.0,0.0014]
[1773588363397,0.041876,71628.0,71621.0,0.0014]
[1773588363583,0.0884209,71631.0,71613.0,5.9e-07]
[1773588363787,0.0884209,71631.0,71607.0,0.043288]
[1773588364183,0.19380417,71630.0,71607.0,0.043288]
[1773588364388,0.19926536,71629.0,71607.0,0.043288]
[1773588364592,0.0041296,71628.0,71608.0,0.041888]
[1773588366096,0.041881,71621.0,71608.0,0.041888]
[1773588367390,0.04188,71622.0,71607.0,0.05776365]
[1773588367698,0.041881,71621.0,71609.0,0.041887]
[1773588368398,0.041881,71621.0,71609.0,0.09827608]
[1773588368897,0.041881,71621.0,71610.0,0.05638908]
[1773588371502,0.041881,71620.0,71610.0,0.05638908]
[1773588372093,0.0014,71629.0,71610.0,0.05638908]
[1773588372297,0.0014,71629.0,71607.0,0.0014]
[1773588372298,0.00213498,71628.0,71609.0,0.0014]
[1773588372600,0.041882,71618.0,71609.0,0.0014]
[1773588372800,0.041881,71620.0,71609.0,0.0014]
[1773588373493,0.0014,71623.0,71607.0,0.05641264]
[1773588373694,0.0014,71623.0,71608.0,0.0014]
[1773588374202,0.041882,71618.0,71609.0,0.0014]
[1773588376104,0.041882,71618.0,71607.0,0.05641264]
[1773588376299,0.041882,71618.0,71609.0,0.0014]
[1773588377604,0.041882,71618.0,71607.0,0.05641264]
[1773588377907,0.041884,71616.0,71604.0,0.04189]
[1773588378110,0.041882,71618.0,71607.0,0.0014]
[1773588378498,0.041882,71619.0,71607.0,0.0014]
[1773588378698,0.041882,71619.0,71607.0,0.043288]
[1773588378899,0.0014,71623.0,71607.0,0.0014]
[1773588379210,0.0014,71623.0,71606.0,0.043289]
[1773588379398,0.0014,71623.0,71607.0,0.0014]
[1773588380203,0.041882,71619.0,71607.0,0.0014]
[1773588380506,0.041882,71619.0,71608.0,0.0014]
[1773588380907,0.041882,71619.0,71607.0,0.043288]
[1773588381098,0.00069802,71631.0,71619.0,0.09832223]
[1773588381299,0.00069802,71631.0,71621.0,0.05643141]
[1773588381505,0.00367,71636.0,71621.0,0.05643141]
[1773588381700,0.24657365,71635.0,71623.0,0.041879]
[1773588382009,0.041872,71635.0,71624.0,0.05643141]
[1773588382508,0.0014,71648.0,71631.0,0.05653453]
[1773588382705,0.20466626,71647.0,71631.0,0.05653453]
[1773588382902,0.041869,71642.0,71631.0,0.05653453]
[1773588383103,0.001,71635.0,71631.0,0.05653453]
[1773588383609,0.04187,71639.0,71631.0,0.05653453]
[1773588384109,0.0014,71647.0,71616.0,0.05656421]
[1773588384303,0.08769896,71641.0,71618.0,0.05647434]
[1773588384504,0.041874,71633.0,71621.0,0.05647434]
[1773588384809,0.08769896,71641.0,71621.0,0.05647434]
[1773588385304,0.0014,71640.0,71621.0,0.05647434]
[1773588385510,0.0014,71640.0,71620.0,0.0014]
[1773588386211,0.0014,71640.0,71620.0,0.05789155]
[1773588386511,0.0014,71640.0,71620.0,0.05649155]
[1773588386707,0.08769896,71630.0,71608.0,0.05610881]
[1773588387011,0.041878,71626.0,71615.0,0.05610881]
[1773588390114,0.041878,71626.0,71617.0,0.05540414]
[1773588390612,0.041877,71628.0,71617.0,0.05540414]
[1773588391008,0.043273,71635.0,71618.0,0.05534957]
[1773588391312,0.041873,71634.0,71621.0,0.05530397]
[1773588391713,0.0014,71635.0,71616.0,0.0014]
[1773588391913,0.041876,71628.0,71617.0,0.0014]
[1773588392115,0.08769896,71630.0,71601.0,0.05397722]
[1773588392408,0.041882,71619.0,71606.0,0.05397722]
[1773588392611,0.041882,71619.0,71607.0,0.0014]
[1773588392816,0.041882,71618.0,71607.0,0.0014]
[1773588393116,0.08769896,71620.0,71608.0,0.0014]
[1773588393324,0.08769896,71620.0,71606.0,0.0014]
[1773588393503,0.08769896,71620.0,71601.0,0.05397722]
[1773588393810,0.041888,71609.0,71602.0,0.0014]
[1773588394121,0.041888,71609.0,71601.0,0.0014]
[1773588394309,0.041888,71609.0,71602.0,0.0014]
[1773588394504,0.041888,71609.0,71597.0,0.05397722]
[1773588394711,0.041888,71609.0,71602.0,0.0014]
[1773588394911,0.041888,71609.0,71597.0,0.05397722]
[1773588395111,0.041888,71609.0,71582.0,0.05397722]
[1773588395112,0.0184378,71608.0,71582.0,0.05397722]
[1773588395314,0.041895,71596.0,71583.0,0.05397722]
[1773588396312,0.02063176,71613.0,71591.0,0.05397722]
[1773588396518,0.0014,71612.0,71593.0,0.05397722]
[1773588396720,0.02063176,71619.0,71593.0,0.05397722]
[1773588397018,0.041891,71604.0,71593.0,0.05397722]
[1773588397810,0.041892,71602.0,71593.0,0.05397722]
[1773588398914,0.04189,71605.0,71593.0,0.05397722]
[1773588399119,0.041891,71603.0,71593.0,0.05397722]
[1773588399307,0.04189,71605.0,71593.0,0.05397722]
[1773588399508,0.041891,71604.0,71593.0,0.05397722]
[1773588400219,0.041891,71603.0,71593.0,0.05397722]
[1773588401726,0.04189,71605.0,71593.0,0.09587422]
[1773588401918,0.04189,71605.0,71594.0,0.05397722]
[1773588404417,0.041891,71603.0,71594.0,0.05537722]
[1773588404819,0.041892,71601.0,71594.0,0.05537722]
[1773588407629,0.10849835,71604.0,71582.0,0.05397722]